[Event "Late-Titled-Tuesday-Blitz-August-29-2023"]
[Site "Chess.com"]
[Date "2023.08.29"]
[Round "4"]
[White "CraiggoryC"]
[Black "ajgreen"]
[Result "0-1"]
[WhiteElo "2212"]
[BlackElo "2415"]
[TimeControl "180+1"]
[EndTime "14:37:02 PDT"]
[Termination "ajgreen won on time"]

1. e4 {[%clk 0:03:00.9]} 1... c5 {[%clk 0:02:59]} 2. Nf3 {[%clk 0:03:01]} 2...
e6 {[%clk 0:02:59.2]} 3. d4 {[%clk 0:03:01.4]} 3... cxd4 {[%clk 0:03:00.1]} 4.
Nxd4 {[%clk 0:03:02]} 4... Nc6 {[%clk 0:03:00.9]} 5. Nc3 {[%clk 0:03:01.3]} 5...
Nf6 {[%clk 0:03:01.5]} 6. Ndb5 {[%clk 0:03:00.6]} 6... Bc5 {[%clk 0:03:01.4]} 7.
Bf4 {[%clk 0:02:58.9]} 7... O-O {[%clk 0:03:01.3]} 8. Bc7 {[%clk 0:02:58.5]}
8... Qe7 {[%clk 0:03:01.7]} 9. Bd6 {[%clk 0:02:59.1]} 9... Bxd6 {[%clk
0:03:02.4]} 10. Qxd6 {[%clk 0:02:58.1]} 10... Qd8 {[%clk 0:03:03.1]} 11. O-O-O
{[%clk 0:02:36.4]} 11... a6 {[%clk 0:03:03.5]} 12. Qa3 {[%clk 0:02:29.1]} 12...
Qb6 {[%clk 0:02:50.7]} 13. f3 {[%clk 0:02:13.7]} 13... d5 {[%clk 0:02:45.1]} 14.
Nd6 {[%clk 0:01:53.2]} 14... dxe4 {[%clk 0:02:30.4]} 15. Ncxe4 {[%clk
0:01:48.7]} 15... Nxe4 {[%clk 0:02:29.1]} 16. fxe4 {[%clk 0:01:30.5]} 16... e5
{[%clk 0:02:17.9]} 17. Bc4 {[%clk 0:01:14.4]} 17... Na5 {[%clk 0:01:53.4]} 18.
Qg3 {[%clk 0:00:57.3]} 18... Nxc4 {[%clk 0:01:37.6]} 19. Nxc4 {[%clk 0:00:58.2]}
19... Qh6+ {[%clk 0:01:37.4]} 20. Kb1 {[%clk 0:00:51.3]} 20... f6 {[%clk
0:01:37.4]} 21. Nb6 {[%clk 0:00:38.7]} 21... Rb8 {[%clk 0:01:36.1]} 22. Nd5
{[%clk 0:00:36.4]} 22... Be6 {[%clk 0:01:29]} 23. Rd3 {[%clk 0:00:23.2]} 23...
Kf7 {[%clk 0:01:27.6]} 24. Rhd1 {[%clk 0:00:20.2]} 24... Qg6 {[%clk 0:01:27.1]}
25. Qe3 {[%clk 0:00:15.1]} 25... Rfd8 {[%clk 0:01:23]} 26. Qc5 {[%clk
0:00:12.7]} 26... Rd7 {[%clk 0:01:20.3]} 27. Nb6 {[%clk 0:00:09.3]} 27... Rxd3
{[%clk 0:01:20.2]} 28. Rxd3 {[%clk 0:00:08.3]} 28... Re8 {[%clk 0:01:19.1]} 29.
Nd5 {[%clk 0:00:06.4]} 29... Qxe4 {[%clk 0:01:16]} 30. Qc7+ {[%clk 0:00:06.4]}
30... Kg8 {[%clk 0:01:12.6]} 0-1

[Event "Late-Titled-Tuesday-Blitz-August-29-2023"]
[Site "Chess.com"]
[Date "2023.08.29"]
[Round "4"]
[White "kleinebeer98"]
[Black "Defend1r"]
[Result "1-0"]
[WhiteElo "2759"]
[BlackElo "2546"]
[TimeControl "180+1"]
[EndTime "14:37:05 PDT"]
[Termination "kleinebeer98 won by resignation"]

1. e4 {[%clk 0:03:00.9]} 1... c5 {[%clk 0:03:00.1]} 2. Nf3 {[%clk 0:03:01.4]}
2... d6 {[%clk 0:03:00.6]} 3. d4 {[%clk 0:03:02]} 3... cxd4 {[%clk 0:03:01.5]}
4. Nxd4 {[%clk 0:03:02.4]} 4... Nf6 {[%clk 0:03:02.2]} 5. Nc3 {[%clk 0:03:03.2]}
5... a6 {[%clk 0:03:02.9]} 6. a3 {[%clk 0:03:04]} 6... e5 {[%clk 0:03:00.1]} 7.
Nf5 {[%clk 0:03:04.4]} 7... d5 {[%clk 0:02:56.8]} 8. Bg5 {[%clk 0:03:04.5]} 8...
d4 {[%clk 0:02:50.7]} 9. Bxf6 {[%clk 0:03:04.4]} 9... gxf6 {[%clk 0:02:47.4]}
10. Nb1 {[%clk 0:03:04.9]} 10... Bxf5 {[%clk 0:02:40.5]} 11. exf5 {[%clk
0:03:05.8]} 11... h5 {[%clk 0:02:40.8]} 12. Nd2 {[%clk 0:03:05.3]} 12... h4
{[%clk 0:02:40]} 13. Ne4 {[%clk 0:03:04.9]} 13... Nd7 {[%clk 0:02:37.6]} 14. b4
{[%clk 0:03:03.4]} 14... Rc8 {[%clk 0:02:32.5]} 15. Bd3 {[%clk 0:03:01.4]} 15...
Nb6 {[%clk 0:02:30.8]} 16. O-O {[%clk 0:02:59.9]} 16... Nd5 {[%clk 0:02:31]} 17.
f4 {[%clk 0:03:00.6]} 17... Nxf4 {[%clk 0:02:29.5]} 18. Rxf4 {[%clk 0:02:59.9]}
18... exf4 {[%clk 0:02:30.4]} 19. Qf3 {[%clk 0:02:58.3]} 19... Be7 {[%clk
0:02:28.7]} 20. Re1 {[%clk 0:02:56.3]} 20... Kf8 {[%clk 0:02:25]} 21. Qxf4
{[%clk 0:02:56.4]} 21... Qc7 {[%clk 0:02:24.8]} 22. Qg4 {[%clk 0:02:55.8]} 22...
Qc6 {[%clk 0:02:07]} 23. h3 {[%clk 0:02:51.2]} 23... a5 {[%clk 0:02:06.9]} 24.
bxa5 {[%clk 0:02:48]} 24... Bxa3 {[%clk 0:02:06.8]} 25. Rb1 {[%clk 0:02:47.4]}
25... Be7 {[%clk 0:02:00.5]} 26. Rb6 {[%clk 0:02:47.9]} 26... Qd5 {[%clk
0:01:51.4]} 27. Qf4 {[%clk 0:02:38.1]} 27... Qxa5 {[%clk 0:01:42]} 28. Rxb7
{[%clk 0:02:36.5]} 28... Qe1+ {[%clk 0:01:23.3]} 29. Kh2 {[%clk 0:02:36.5]}
29... Qe3 {[%clk 0:01:23.9]} 30. Qf1 {[%clk 0:02:25]} 30... Rg8 {[%clk
0:01:14.5]} 31. Qa1 {[%clk 0:02:19.8]} 31... Bd6+ {[%clk 0:00:50.3]} 32. Kh1
{[%clk 0:02:20.3]} 32... Be5 {[%clk 0:00:49.9]} 33. Qf1 {[%clk 0:02:12.6]} 33...
Ra8 {[%clk 0:00:47]} 34. Rb1 {[%clk 0:01:56.4]} 34... Ra3 {[%clk 0:00:34.4]} 35.
Re1 {[%clk 0:01:55.5]} 35... Qh6 {[%clk 0:00:23]} 36. Qf3 {[%clk 0:01:56.1]}
36... Qf4 {[%clk 0:00:22.1]} 37. Qxf4 {[%clk 0:01:56.1]} 37... Bxf4 {[%clk
0:00:23]} 38. Nxf6 {[%clk 0:01:57]} 38... Rg3 {[%clk 0:00:22.6]} 39. Re8+ {[%clk
0:01:55.4]} 39... Kg7 {[%clk 0:00:23.1]} 40. Nh5+ {[%clk 0:01:56.1]} 40... Kh6
{[%clk 0:00:22.2]} 41. Nxf4 {[%clk 0:01:55.3]} 41... Ra1+ {[%clk 0:00:19.9]} 42.
Kh2 {[%clk 0:01:54.9]} 42... Re3 {[%clk 0:00:20]} 43. Rh8+ {[%clk 0:01:40.8]}
43... Kg5 {[%clk 0:00:19.8]} 44. Ne2 {[%clk 0:01:41.2]} 44... Rd1 {[%clk
0:00:16.4]} 45. Nxd4 {[%clk 0:01:40.3]} 45... Rexd3 {[%clk 0:00:14]} 46. cxd3
{[%clk 0:01:40.6]} 46... Rxd3 {[%clk 0:00:14.7]} 47. Nf3+ {[%clk 0:01:41.4]}
47... Kxf5 {[%clk 0:00:15.6]} 48. Rxh4 {[%clk 0:01:41.7]} 48... Kg6 {[%clk
0:00:16.5]} 49. Ne5+ {[%clk 0:01:41.6]} 49... Kg5 {[%clk 0:00:16.5]} 50. Rg4+
{[%clk 0:01:42.1]} 1-0

[Event "Late-Titled-Tuesday-Blitz-August-29-2023"]
[Site "Chess.com"]
[Date "2023.08.29"]
[Round "4"]
[White "Dhaydon19"]
[Black "secretsuperstar7"]
[Result "1-0"]
[WhiteElo "2653"]
[BlackElo "2390"]
[TimeControl "180+1"]
[EndTime "14:37:15 PDT"]
[Termination "Dhaydon19 won by checkmate"]

1. d4 {[%clk 0:02:52.4]} 1... d5 {[%clk 0:02:55.4]} 2. Nc3 {[%clk 0:02:52.2]}
2... Nf6 {[%clk 0:02:53.5]} 3. Bf4 {[%clk 0:02:52.3]} 3... a6 {[%clk 0:02:52.8]}
4. e3 {[%clk 0:02:52.6]} 4... e6 {[%clk 0:02:51.6]} 5. Bd3 {[%clk 0:02:52.7]}
5... c5 {[%clk 0:02:51.4]} 6. g4 {[%clk 0:02:50.3]} 6... c4 {[%clk 0:02:48.9]}
7. Be2 {[%clk 0:02:49.6]} 7... Bb4 {[%clk 0:02:48.6]} 8. f3 {[%clk 0:02:44.4]}
8... Nc6 {[%clk 0:02:41.5]} 9. Qd2 {[%clk 0:02:42.5]} 9... b5 {[%clk 0:02:34.2]}
10. a3 {[%clk 0:02:41]} 10... Ba5 {[%clk 0:02:33]} 11. b4 {[%clk 0:02:39.7]}
11... cxb3 {[%clk 0:02:31.1]} 12. cxb3 {[%clk 0:02:38.4]} 12... b4 {[%clk
0:02:25.7]} 13. axb4 {[%clk 0:02:37.9]} 13... Bxb4 {[%clk 0:02:24.5]} 14. Bd3
{[%clk 0:02:33.3]} 14... Qb6 {[%clk 0:02:19.3]} 15. Nge2 {[%clk 0:02:32]} 15...
Na5 {[%clk 0:02:05.9]} 16. Qa2 {[%clk 0:02:24.1]} 16... Bd7 {[%clk 0:01:36.4]}
17. Kf2 {[%clk 0:02:20.2]} 17... O-O {[%clk 0:01:32.3]} 18. Rhc1 {[%clk
0:02:14.3]} 18... Rfc8 {[%clk 0:01:29.7]} 19. Na4 {[%clk 0:02:14.3]} 19... Bxa4
{[%clk 0:01:24.7]} 20. Qxa4 {[%clk 0:02:14.6]} 20... Bd2 {[%clk 0:01:22.1]} 21.
Rxc8+ {[%clk 0:02:06]} 21... Rxc8 {[%clk 0:01:19.6]} 22. Rb1 {[%clk 0:02:03]}
22... Ne8 {[%clk 0:00:57.9]} 23. g5 {[%clk 0:01:44.9]} 23... Nd6 {[%clk
0:00:55.5]} 24. h4 {[%clk 0:01:42]} 24... Nb5 {[%clk 0:00:48.6]} 25. Ra1 {[%clk
0:01:21.7]} 25... h5 {[%clk 0:00:15.7]} 26. gxh6 {[%clk 0:01:19.2]} 26... g6
{[%clk 0:00:14.2]} 27. h5 {[%clk 0:01:18.3]} 27... gxh5 {[%clk 0:00:13.4]} 28.
Rg1+ {[%clk 0:01:16.9]} 28... Kf8 {[%clk 0:00:11.1]} 29. h7 {[%clk 0:01:16.9]}
29... Ke7 {[%clk 0:00:10.1]} 30. Rg8 {[%clk 0:01:16.9]} 30... Bxe3+ {[%clk
0:00:06.7]} 31. Bxe3 {[%clk 0:01:16.3]} 31... Nc3 {[%clk 0:00:06.1]} 32. Qa3+
{[%clk 0:01:15.8]} 32... Kd7 {[%clk 0:00:05]} 33. Rxc8 {[%clk 0:01:14.9]} 33...
Nd1+ {[%clk 0:00:03.3]} 34. Ke1 {[%clk 0:01:14.8]} 34... Nxe3 {[%clk 0:00:03.3]}
35. h8=Q {[%clk 0:01:14.4]} 35... Ng2+ {[%clk 0:00:03.1]} 36. Kf2 {[%clk
0:01:14]} 36... Nf4 {[%clk 0:00:03]} 37. Qe8# {[%clk 0:01:13.3]} 1-0

[Event "Late-Titled-Tuesday-Blitz-August-29-2023"]
[Site "Chess.com"]
[Date "2023.08.29"]
[Round "4"]
[White "wgraif"]
[Black "rachidhuilda"]
[Result "0-1"]
[WhiteElo "2527"]
[BlackElo "2363"]
[TimeControl "180+1"]
[EndTime "14:37:21 PDT"]
[Termination "rachidhuilda won on time"]

1. e4 {[%clk 0:02:54.7]} 1... d5 {[%clk 0:02:59.9]} 2. d4 {[%clk 0:02:53.7]}
2... dxe4 {[%clk 0:02:59.5]} 3. Nc3 {[%clk 0:02:53.5]} 3... e5 {[%clk
0:02:59.6]} 4. Qh5 {[%clk 0:02:52.1]} 4... exd4 {[%clk 0:02:57]} 5. Bc4 {[%clk
0:02:50.9]} 5... Qe7 {[%clk 0:02:46.7]} 6. Bg5 {[%clk 0:02:39.3]} 6... Nf6
{[%clk 0:02:33.6]} 7. Bxf6 {[%clk 0:01:57.7]} 7... Qxf6 {[%clk 0:01:42.3]} 8.
Nxe4 {[%clk 0:01:48.5]} 8... Qe7 {[%clk 0:01:20.6]} 9. O-O-O {[%clk 0:01:33.7]}
9... g6 {[%clk 0:01:20.7]} 10. Qe2 {[%clk 0:01:26.3]} 10... Be6 {[%clk
0:01:17.4]} 11. Bxe6 {[%clk 0:01:18.9]} 11... fxe6 {[%clk 0:01:14.8]} 12. Nf3
{[%clk 0:01:09]} 12... Nc6 {[%clk 0:01:01.4]} 13. Nxd4 {[%clk 0:01:04.7]} 13...
Bg7 {[%clk 0:00:48.7]} 14. Nxc6 {[%clk 0:00:54]} 14... bxc6 {[%clk 0:00:49.6]}
15. Rhe1 {[%clk 0:00:35.6]} 15... O-O {[%clk 0:00:46.2]} 16. Nd2 {[%clk
0:00:28.9]} 16... Rab8 {[%clk 0:00:45.4]} 17. Nb3 {[%clk 0:00:26.5]} 17... Qf6
{[%clk 0:00:40.3]} 18. Qxe6+ {[%clk 0:00:19.9]} 18... Qxe6 {[%clk 0:00:40.7]}
19. Rxe6 {[%clk 0:00:20.2]} 19... Rxf2 {[%clk 0:00:41.2]} 20. Rd2 {[%clk
0:00:17.6]} 20... Bh6 {[%clk 0:00:39.3]} 21. c3 {[%clk 0:00:09.1]} 21... Rd8
{[%clk 0:00:33.5]} 0-1

[Event "Late-Titled-Tuesday-Blitz-August-29-2023"]
[Site "Chess.com"]
[Date "2023.08.29"]
[Round "4"]
[White "miraitrunks"]
[Black "b_6"]
[Result "0-1"]
[WhiteElo "2029"]
[BlackElo "2472"]
[TimeControl "180+1"]
[EndTime "14:37:22 PDT"]
[Termination "b_6 won by resignation"]

1. e4 {[%clk 0:02:34.1]} 1... e6 {[%clk 0:02:58.6]} 2. Nc3 {[%clk 0:02:24.7]}
2... d5 {[%clk 0:02:57.9]} 3. Nf3 {[%clk 0:02:25]} 3... Nf6 {[%clk 0:02:53.5]}
4. e5 {[%clk 0:02:25.2]} 4... Nfd7 {[%clk 0:02:53.4]} 5. d4 {[%clk 0:02:25.4]}
5... c5 {[%clk 0:02:53.2]} 6. dxc5 {[%clk 0:02:26.3]} 6... Nc6 {[%clk
0:02:47.9]} 7. Bf4 {[%clk 0:02:26]} 7... Nxc5 {[%clk 0:02:44.1]} 8. Be2 {[%clk
0:02:22.3]} 8... Be7 {[%clk 0:02:43.7]} 9. O-O {[%clk 0:02:22.4]} 9... g5 {[%clk
0:02:39.8]} 10. Bg3 {[%clk 0:02:20]} 10... h5 {[%clk 0:02:37.3]} 11. h3 {[%clk
0:02:15.8]} 11... Bd7 {[%clk 0:02:24.8]} 12. Nd4 {[%clk 0:02:07.8]} 12... h4
{[%clk 0:02:11.8]} 13. Bh2 {[%clk 0:02:07.6]} 13... Nxd4 {[%clk 0:01:58.9]} 14.
Qxd4 {[%clk 0:02:06.7]} 14... Qb6 {[%clk 0:01:59.4]} 15. Rad1 {[%clk 0:01:58.7]}
15... O-O-O {[%clk 0:01:53.5]} 16. b4 {[%clk 0:01:37.2]} 16... Na4 {[%clk
0:01:48.6]} 17. Nxa4 {[%clk 0:01:36.9]} 17... Bxa4 {[%clk 0:01:38.4]} 18. Qxb6
{[%clk 0:01:33.9]} 18... axb6 {[%clk 0:01:39.3]} 19. Rd4 {[%clk 0:01:34.4]}
19... Bd7 {[%clk 0:01:30.8]} 20. f4 {[%clk 0:01:21.8]} 20... gxf4 {[%clk
0:01:24.3]} 21. Rdxf4 {[%clk 0:01:22.7]} 21... Be8 {[%clk 0:01:22]} 22. Bg4
{[%clk 0:01:18.5]} 22... Kb8 {[%clk 0:01:15.4]} 23. Rxf7 {[%clk 0:01:15.5]}
23... Bxf7 {[%clk 0:01:12.4]} 24. Rxf7 {[%clk 0:01:16.2]} 24... Bxb4 {[%clk
0:01:09.6]} 25. Bxe6 {[%clk 0:01:15]} 25... Bc5+ {[%clk 0:01:06.8]} 26. Kh1
{[%clk 0:01:13.1]} 26... Rhf8 {[%clk 0:01:03.3]} 27. Bf4 {[%clk 0:01:05.1]}
27... Ka7 {[%clk 0:00:39.4]} 28. g4 {[%clk 0:00:58.1]} 28... hxg3 {[%clk
0:00:36.6]} 29. Bxg3 {[%clk 0:00:57.6]} 29... Rxf7 {[%clk 0:00:29.8]} 30. Bxf7
{[%clk 0:00:58.2]} 30... Be7 {[%clk 0:00:30.4]} 31. e6 {[%clk 0:00:55.7]} 31...
Rc8 {[%clk 0:00:25]} 32. Bg6 {[%clk 0:00:54.9]} 32... Rg8 {[%clk 0:00:24.8]} 0-1

[Event "Late-Titled-Tuesday-Blitz-August-29-2023"]
[Site "Chess.com"]
[Date "2023.08.29"]
[Round "4"]
[White "TheMagician"]
[Black "Walter_White_Poland"]
[Result "1/2-1/2"]
[WhiteElo "2156"]
[BlackElo "2353"]
[TimeControl "180+1"]
[EndTime "14:37:22 PDT"]
[Termination "Game drawn by repetition"]

1. d4 {[%clk 0:03:00.1]} 1... Nf6 {[%clk 0:02:58.6]} 2. Nf3 {[%clk 0:02:59.6]}
2... c5 {[%clk 0:02:57.9]} 3. c3 {[%clk 0:02:59.1]} 3... d5 {[%clk 0:02:57.3]}
4. e3 {[%clk 0:02:54.5]} 4... Nc6 {[%clk 0:02:57]} 5. Ne5 {[%clk 0:02:47.7]}
5... Qc7 {[%clk 0:02:47.4]} 6. f4 {[%clk 0:02:46.8]} 6... e6 {[%clk 0:02:38.6]}
7. Bd3 {[%clk 0:02:46.3]} 7... Bd6 {[%clk 0:02:37.1]} 8. O-O {[%clk 0:02:45.7]}
8... O-O {[%clk 0:02:34.4]} 9. Nd2 {[%clk 0:02:45.5]} 9... Ne7 {[%clk
0:02:32.4]} 10. Qe1 {[%clk 0:02:41.9]} 10... Nf5 {[%clk 0:02:31]} 11. g4 {[%clk
0:02:37.7]} 11... Bxe5 {[%clk 0:02:13.9]} 12. gxf5 {[%clk 0:02:17.5]} 12... Bd6
{[%clk 0:02:12.7]} 13. fxe6 {[%clk 0:02:14.4]} 13... Bxe6 {[%clk 0:02:06.1]} 14.
Qh4 {[%clk 0:02:07.7]} 14... Qe7 {[%clk 0:00:54.3]} 15. Nf3 {[%clk 0:02:01.4]}
15... Ne4 {[%clk 0:00:37.7]} 16. Qxe7 {[%clk 0:01:58.4]} 16... Bxe7 {[%clk
0:00:37.1]} 17. Kg2 {[%clk 0:01:42.8]} 17... Bf5 {[%clk 0:00:36.1]} 18. Be2
{[%clk 0:01:35.4]} 18... h6 {[%clk 0:00:34.9]} 19. Bd2 {[%clk 0:01:35.4]} 19...
Rac8 {[%clk 0:00:34]} 20. Rad1 {[%clk 0:01:35.1]} 20... a6 {[%clk 0:00:33.6]}
21. Bc1 {[%clk 0:01:35]} 21... Rfd8 {[%clk 0:00:29.3]} 22. Bd3 {[%clk
0:01:30.8]} 22... c4 {[%clk 0:00:27.1]} 23. Be2 {[%clk 0:01:30.3]} 23... f6
{[%clk 0:00:26.5]} 24. Nd2 {[%clk 0:01:29.3]} 24... Nxd2 {[%clk 0:00:25.6]} 25.
Bxd2 {[%clk 0:01:28.9]} 25... Be4+ {[%clk 0:00:25.9]} 26. Bf3 {[%clk 0:01:29.3]}
26... f5 {[%clk 0:00:26.3]} 27. Bxe4 {[%clk 0:01:29.2]} 27... fxe4 {[%clk
0:00:26.3]} 28. Kh3 {[%clk 0:01:27.2]} 28... Bd6 {[%clk 0:00:26.1]} 29. Rg1
{[%clk 0:01:26.8]} 29... Rf8 {[%clk 0:00:25.6]} 30. Rg6 {[%clk 0:01:26.9]} 30...
Rf6 {[%clk 0:00:21.9]} 31. Rxf6 {[%clk 0:01:26.4]} 31... gxf6 {[%clk 0:00:21.9]}
32. Rg1+ {[%clk 0:01:21.9]} 32... Kf7 {[%clk 0:00:22]} 33. f5 {[%clk 0:01:20.9]}
33... Rg8 {[%clk 0:00:18.1]} 34. Rxg8 {[%clk 0:01:20.6]} 34... Kxg8 {[%clk
0:00:19]} 35. Be1 {[%clk 0:01:20.9]} 35... Kf7 {[%clk 0:00:17.7]} 36. Bg3 {[%clk
0:01:20.8]} 36... Bxg3 {[%clk 0:00:15.4]} 37. hxg3 {[%clk 0:01:20.8]} 37... b5
{[%clk 0:00:15.3]} 38. Kg4 {[%clk 0:01:18.9]} 38... a5 {[%clk 0:00:15.3]} 39.
Kh5 {[%clk 0:01:17.7]} 39... Kg7 {[%clk 0:00:14.7]} 40. a3 {[%clk 0:01:17.8]}
40... Kh7 {[%clk 0:00:13.3]} 41. Kg4 {[%clk 0:01:17.1]} 41... Kg7 {[%clk
0:00:13.2]} 42. Kh5 {[%clk 0:01:17.5]} 42... Kh7 {[%clk 0:00:13.4]} 43. Kg4
{[%clk 0:01:17.8]} 43... Kg7 {[%clk 0:00:13.8]} 44. Kh5 {[%clk 0:01:17.9]}
1/2-1/2

[Event "Late-Titled-Tuesday-Blitz-August-29-2023"]
[Site "Chess.com"]
[Date "2023.08.29"]
[Round "4"]
[White "Zkid"]
[Black "HansOnTwitch"]
[Result "0-1"]
[WhiteElo "2853"]
[BlackElo "3012"]
[TimeControl "180+1"]
[EndTime "14:37:23 PDT"]
[Termination "HansOnTwitch won by resignation"]

1. e4 {[%clk 0:02:59.7]} 1... c5 {[%clk 0:02:57.5]} 2. Nf3 {[%clk 0:02:59.6]}
2... Nc6 {[%clk 0:02:58.2]} 3. Bb5 {[%clk 0:02:59.1]} 3... g6 {[%clk 0:02:58.2]}
4. O-O {[%clk 0:02:59.3]} 4... Bg7 {[%clk 0:02:58.6]} 5. c3 {[%clk 0:03:00]}
5... e5 {[%clk 0:02:57.7]} 6. d3 {[%clk 0:02:59.1]} 6... Nge7 {[%clk 0:02:57.3]}
7. Be3 {[%clk 0:02:58.6]} 7... d6 {[%clk 0:02:56.1]} 8. d4 {[%clk 0:02:55.2]}
8... exd4 {[%clk 0:02:44.4]} 9. cxd4 {[%clk 0:02:56.1]} 9... O-O {[%clk
0:02:20.7]} 10. Nc3 {[%clk 0:02:49.3]} 10... cxd4 {[%clk 0:02:10.8]} 11. Nxd4
{[%clk 0:02:48.7]} 11... a6 {[%clk 0:02:10.5]} 12. Bc4 {[%clk 0:02:42.2]} 12...
Ne5 {[%clk 0:02:10.4]} 13. Bb3 {[%clk 0:02:39.3]} 13... Ng4 {[%clk 0:02:10.2]}
14. Bf4 {[%clk 0:02:35.4]} 14... Ne5 {[%clk 0:02:06.2]} 15. Nc2 {[%clk
0:02:28.8]} 15... b5 {[%clk 0:01:57.4]} 16. Ne3 {[%clk 0:02:26.8]} 16... Bb7
{[%clk 0:01:57.3]} 17. Ncd5 {[%clk 0:02:26.6]} 17... N7c6 {[%clk 0:01:56.5]} 18.
a3 {[%clk 0:02:22.4]} 18... Nd4 {[%clk 0:01:52.5]} 19. Ba2 {[%clk 0:02:21.3]}
19... Rc8 {[%clk 0:01:49]} 20. Kh1 {[%clk 0:02:19]} 20... Nc4 {[%clk 0:01:24.4]}
21. Bxc4 {[%clk 0:02:02.2]} 21... bxc4 {[%clk 0:01:24.3]} 22. Rc1 {[%clk
0:01:59]} 22... f5 {[%clk 0:01:20.7]} 23. exf5 {[%clk 0:01:28.4]} 23... Bxd5
{[%clk 0:01:12.8]} 24. Nxd5 {[%clk 0:01:02]} 24... Rxf5 {[%clk 0:01:11.8]} 25.
Ne3 {[%clk 0:00:48.3]} 25... Rxf4 {[%clk 0:01:10.9]} 26. Nxc4 {[%clk 0:00:48.9]}
26... Qf6 {[%clk 0:00:52.4]} 27. Qd3 {[%clk 0:00:35.5]} 27... Rxf2 {[%clk
0:00:48.6]} 28. Nb6 {[%clk 0:00:25.8]} 28... Rxc1 {[%clk 0:00:43.1]} 29. Rxc1
{[%clk 0:00:26.7]} 29... h5 {[%clk 0:00:40.2]} 30. Qxa6 {[%clk 0:00:23.7]} 30...
Ne2 {[%clk 0:00:39]} 0-1

[Event "Late-Titled-Tuesday-Blitz-August-29-2023"]
[Site "Chess.com"]
[Date "2023.08.29"]
[Round "4"]
[White "Laico"]
[Black "AleksandraMilovic"]
[Result "1-0"]
[WhiteElo "2430"]
[BlackElo "2136"]
[TimeControl "180+1"]
[EndTime "14:37:24 PDT"]
[Termination "Laico won by resignation"]

1. e4 {[%clk 0:02:57.4]} 1... c5 {[%clk 0:02:58.4]} 2. Nc3 {[%clk 0:02:57.9]}
2... e6 {[%clk 0:02:57.8]} 3. f4 {[%clk 0:02:58.5]} 3... d5 {[%clk 0:02:57.3]}
4. Nf3 {[%clk 0:02:58.7]} 4... Nc6 {[%clk 0:02:56.3]} 5. Bb5 {[%clk 0:02:57.9]}
5... d4 {[%clk 0:02:50.9]} 6. Bxc6+ {[%clk 0:02:58.1]} 6... bxc6 {[%clk
0:02:50.7]} 7. Ne2 {[%clk 0:02:58.8]} 7... Nf6 {[%clk 0:02:49.2]} 8. d3 {[%clk
0:02:58]} 8... Be7 {[%clk 0:02:48.6]} 9. b3 {[%clk 0:02:58.5]} 9... O-O {[%clk
0:02:48.1]} 10. O-O {[%clk 0:02:58.5]} 10... Qc7 {[%clk 0:02:37.5]} 11. a4
{[%clk 0:02:58]} 11... a5 {[%clk 0:02:35.4]} 12. Qe1 {[%clk 0:02:54]} 12... Nd7
{[%clk 0:02:28.7]} 13. Ba3 {[%clk 0:02:51.7]} 13... f5 {[%clk 0:02:21.6]} 14.
Nfxd4 {[%clk 0:02:48]} 14... fxe4 {[%clk 0:02:14.6]} 15. Nxe6 {[%clk 0:02:44.9]}
15... Qd6 {[%clk 0:02:12.7]} 16. Nxf8 {[%clk 0:02:44.1]} 16... Nxf8 {[%clk
0:02:08.5]} 17. dxe4 {[%clk 0:02:40.2]} 17... Ba6 {[%clk 0:02:05.2]} 18. c4
{[%clk 0:01:57.9]} 18... Rb8 {[%clk 0:02:03.2]} 19. Rb1 {[%clk 0:01:56.7]} 19...
Qd3 {[%clk 0:02:01.2]} 20. Nc3 {[%clk 0:01:56.8]} 20... Ne6 {[%clk 0:01:52.5]}
21. Rf3 {[%clk 0:01:44.1]} 21... Qc2 {[%clk 0:01:41.5]} 22. Qd1 {[%clk
0:01:39.2]} 22... Qxd1+ {[%clk 0:01:35.9]} 23. Nxd1 {[%clk 0:01:40.1]} 23... Nd4
{[%clk 0:01:33.6]} 24. Rd3 {[%clk 0:01:26.7]} 24... Bxc4 {[%clk 0:01:31.6]} 25.
Rxd4 {[%clk 0:01:21.6]} 25... cxd4 {[%clk 0:01:25.9]} 26. Bxe7 {[%clk
0:01:22.5]} 26... Bd3 {[%clk 0:01:19]} 27. Rb2 {[%clk 0:01:16.8]} 27... Re8
{[%clk 0:01:19.3]} 28. Nf2 {[%clk 0:01:07.4]} 28... Ba6 {[%clk 0:01:17.2]} 29.
Bc5 {[%clk 0:01:04.9]} 29... d3 {[%clk 0:01:17]} 30. Rd2 {[%clk 0:01:00.7]}
30... Rd8 {[%clk 0:01:17.1]} 31. Bb6 {[%clk 0:00:58.4]} 31... Rb8 {[%clk
0:01:16]} 32. Bxa5 {[%clk 0:00:58.5]} 32... Rxb3 {[%clk 0:01:16]} 33. Nd1 {[%clk
0:00:49.4]} 33... c5 {[%clk 0:01:13.4]} 34. Kf2 {[%clk 0:00:48.9]} 34... c4
{[%clk 0:01:09.2]} 35. Ke3 {[%clk 0:00:49.2]} 35... Ra3 {[%clk 0:01:09.5]} 36.
Nc3 {[%clk 0:00:47]} 36... Ra1 {[%clk 0:01:06.4]} 37. Kd4 {[%clk 0:00:46.7]}
37... Rf1 {[%clk 0:01:06.1]} 38. g3 {[%clk 0:00:45.7]} 38... Rc1 {[%clk
0:01:02]} 39. Kc5 {[%clk 0:00:45.4]} 39... Rc2 {[%clk 0:01:02.3]} 40. Rxc2
{[%clk 0:00:41]} 40... dxc2 {[%clk 0:01:03.2]} 41. Na2 {[%clk 0:00:41.2]} 41...
c3 {[%clk 0:01:02.5]} 42. Bxc3 {[%clk 0:00:39.9]} 42... Bd3 {[%clk 0:01:02.1]}
43. Kd4 {[%clk 0:00:37.4]} 43... Ba6 {[%clk 0:00:58.5]} 44. Bb2 {[%clk
0:00:36.9]} 44... Bb7 {[%clk 0:00:56.3]} 45. Nb4 {[%clk 0:00:36.6]} 1-0